[Event "*** Titled Tuesday Blitz"]
[Site "Chess.com"]
[Date "2021.03.09"]
[Round "4"]
[White "BegmuratovKh2010"]
[Black "Agoking701"]
[Result "0-1"]
[WhiteElo "2544"]
[BlackElo "2360"]
[TimeControl "180+1"]
[EndTime "10:42:10 PST"]
[Termination "Agoking701 won by resignation"]

1. e4 {[%clk 0:03:00.9]} 1... c5 {[%clk 0:02:58.6]} 2. Nc3 {[%clk 0:02:59.7]}
2... e6 {[%clk 0:02:59]} 3. g3 {[%clk 0:03:00]} 3... Nc6 {[%clk 0:02:56.2]} 4.
Bg2 {[%clk 0:03:00.2]} 4... Nge7 {[%clk 0:02:56.6]} 5. Nge2 {[%clk 0:02:59.3]}
5... g6 {[%clk 0:02:56.7]} 6. O-O {[%clk 0:02:57.6]} 6... Bg7 {[%clk 0:02:56.6]}
7. d3 {[%clk 0:02:57.5]} 7... O-O {[%clk 0:02:56.3]} 8. Be3 {[%clk 0:02:54]}
8... Nd4 {[%clk 0:02:50.5]} 9. Qd2 {[%clk 0:02:47.1]} 9... d5 {[%clk 0:02:48.1]}
10. Nd1 {[%clk 0:02:42.9]} 10... b5 {[%clk 0:02:40.5]} 11. Nxd4 {[%clk
0:02:28.5]} 11... cxd4 {[%clk 0:02:38.5]} 12. Bh6 {[%clk 0:02:29.4]} 12... dxe4
{[%clk 0:02:10.3]} 13. Bxg7 {[%clk 0:02:14.2]} 13... Kxg7 {[%clk 0:02:09.7]} 14.
Bxe4 {[%clk 0:02:14]} 14... Rb8 {[%clk 0:02:08.1]} 15. c3 {[%clk 0:02:13.5]}
15... Bb7 {[%clk 0:02:06.8]} 16. Qe2 {[%clk 0:01:58.1]} 16... Qd6 {[%clk
0:01:55.7]} 17. Rc1 {[%clk 0:01:41.9]} 17... Rfd8 {[%clk 0:01:51.9]} 18. Re1
{[%clk 0:01:25.9]} 18... Bxe4 {[%clk 0:01:46.1]} 19. Qxe4 {[%clk 0:01:26.8]}
19... Rbc8 {[%clk 0:01:44.1]} 20. h4 {[%clk 0:01:16]} 20... h5 {[%clk
0:01:40.2]} 21. Re2 {[%clk 0:01:09.4]} 21... a5 {[%clk 0:01:32]} 22. Rb1 {[%clk
0:01:02.1]} 22... Qd5 {[%clk 0:01:27.7]} 23. Qe5+ {[%clk 0:00:58.1]} 23... Qxe5
{[%clk 0:01:18.5]} 24. Rxe5 {[%clk 0:00:59]} 24... Rd5 {[%clk 0:01:19]} 25. Rxd5
{[%clk 0:00:54.3]} 25... Nxd5 {[%clk 0:01:18.4]} 26. cxd4 {[%clk 0:00:54.5]}
26... Rc2 {[%clk 0:01:13.7]} 27. Kf1 {[%clk 0:00:40.6]} 27... b4 {[%clk
0:01:06.5]} 28. Ke1 {[%clk 0:00:33.9]} 28... a4 {[%clk 0:01:05.1]} 29. Kf1
{[%clk 0:00:22.2]} 29... Kf6 {[%clk 0:00:59.7]} 30. Ke1 {[%clk 0:00:21.5]} 30...
Kf5 {[%clk 0:00:59.9]} 31. Ne3+ {[%clk 0:00:17.8]} 31... Nxe3 {[%clk 0:00:59.1]}
32. fxe3 {[%clk 0:00:18.7]} 32... Kg4 {[%clk 0:00:50.3]} 33. b3 {[%clk
0:00:12.8]} 33... a3 {[%clk 0:00:48.4]} 34. e4 {[%clk 0:00:10.7]} 34... Kxg3
{[%clk 0:00:37.2]} 35. d5 {[%clk 0:00:09.3]} 35... exd5 {[%clk 0:00:37.2]} 36.
exd5 {[%clk 0:00:10.2]} 36... Kxh4 {[%clk 0:00:35.6]} 37. Kd1 {[%clk 0:00:06.4]}
37... Rc8 {[%clk 0:00:30.9]} 38. Rc1 {[%clk 0:00:04.5]} 38... Rxc1+ {[%clk
0:00:22.4]} 39. Kxc1 {[%clk 0:00:05.4]} 39... Kg5 {[%clk 0:00:22.7]} 40. Kd2
{[%clk 0:00:05]} 40... Kf6 {[%clk 0:00:21.6]} 41. d4 {[%clk 0:00:03.5]} 41...
Ke7 {[%clk 0:00:20.7]} 42. Ke3 {[%clk 0:00:04.4]} 42... Kd6 {[%clk 0:00:21.2]}
43. Ke4 {[%clk 0:00:04.6]} 43... h4 {[%clk 0:00:21.1]} 44. Kf3 {[%clk 0:00:05]}
44... Kxd5 {[%clk 0:00:20.7]} 45. Kg4 {[%clk 0:00:05.9]} 45... g5 {[%clk
0:00:20.7]} 46. Kh3 {[%clk 0:00:04.9]} 46... Kxd4 {[%clk 0:00:20.6]} 47. Kg4
{[%clk 0:00:05.8]} 47... Kc3 {[%clk 0:00:21.2]} 48. Kh3 {[%clk 0:00:06.7]} 48...
Kb2 {[%clk 0:00:21.7]} 0-1

[Event "*** Titled Tuesday Blitz"]
[Site "Chess.com"]
[Date "2021.03.09"]
[Round "4"]
[White "lucachess49"]
[Black "Trickster_Pony"]
[Result "1-0"]
[WhiteElo "2390"]
[BlackElo "1461"]
[TimeControl "180+1"]
[EndTime "10:42:10 PST"]
[Termination "lucachess49 won by resignation"]

1. d4 {[%clk 0:03:00.9]} 1... d5 {[%clk 0:02:57.8]} 2. c4 {[%clk 0:03:01]} 2...
e6 {[%clk 0:02:55.5]} 3. Nc3 {[%clk 0:03:01.1]} 3... Nf6 {[%clk 0:02:55.1]} 4.
cxd5 {[%clk 0:02:58.8]} 4... exd5 {[%clk 0:02:55]} 5. Bg5 {[%clk 0:02:58.1]}
5... Be7 {[%clk 0:02:54.3]} 6. e3 {[%clk 0:02:57]} 6... O-O {[%clk 0:02:50.2]}
7. Bd3 {[%clk 0:02:56.9]} 7... c6 {[%clk 0:02:47.4]} 8. Qc2 {[%clk 0:02:56.2]}
8... h6 {[%clk 0:02:44.8]} 9. Bh4 {[%clk 0:02:55]} 9... Nbd7 {[%clk 0:02:31.3]}
10. Nf3 {[%clk 0:02:54.9]} 10... c5 {[%clk 0:02:22.3]} 11. O-O {[%clk
0:02:51.4]} 11... cxd4 {[%clk 0:02:13.9]} 12. exd4 {[%clk 0:02:47.1]} 12... Nb6
{[%clk 0:02:12.5]} 13. Rfe1 {[%clk 0:02:44.3]} 13... Nc4 {[%clk 0:02:03.7]} 14.
Nxd5 {[%clk 0:02:09.6]} 14... Nxd5 {[%clk 0:01:53.4]} 15. Bxe7 {[%clk
0:02:08.7]} 15... Nxe7 {[%clk 0:01:51.3]} 16. Bxc4 {[%clk 0:02:08.3]} 16... Bf5
{[%clk 0:01:50.3]} 17. Qb3 {[%clk 0:02:08]} 17... Rc8 {[%clk 0:01:43.4]} 18. Ne5
{[%clk 0:02:06.3]} 18... Qxd4 {[%clk 0:01:23.9]} 19. Rad1 {[%clk 0:01:52.5]}
19... Qc5 {[%clk 0:00:45.6]} 20. Qxb7 {[%clk 0:01:03.9]} 20... Be6 {[%clk
0:00:40.2]} 21. Bxe6 {[%clk 0:00:31.8]} 21... fxe6 {[%clk 0:00:41.1]} 22. Nd3
{[%clk 0:00:32.1]} 22... Qg5 {[%clk 0:00:21.9]} 23. Qxa7 {[%clk 0:00:16.2]}
23... Nd5 {[%clk 0:00:18.5]} 24. g3 {[%clk 0:00:12.9]} 24... Nf4 {[%clk
0:00:17.5]} 25. Nxf4 {[%clk 0:00:11.9]} 25... Rxf4 {[%clk 0:00:17.5]} 26. Qe3
{[%clk 0:00:11.4]} 26... Rf6 {[%clk 0:00:12.1]} 27. Qxg5 {[%clk 0:00:10.3]}
27... hxg5 {[%clk 0:00:13]} 28. b4 {[%clk 0:00:10.3]} 28... Rc2 {[%clk
0:00:12.9]} 29. Rf1 {[%clk 0:00:09.3]} 29... Rxa2 {[%clk 0:00:12.6]} 30. Rb1
{[%clk 0:00:09.9]} 30... Rf3 {[%clk 0:00:11.5]} 31. b5 {[%clk 0:00:09.6]} 31...
Ra8 {[%clk 0:00:10]} 32. b6 {[%clk 0:00:09.8]} 32... Rb8 {[%clk 0:00:10.5]} 33.
Rfc1 {[%clk 0:00:09.7]} 33... Kf7 {[%clk 0:00:06.7]} 34. Rc7+ {[%clk 0:00:09.5]}
34... Ke8 {[%clk 0:00:06.2]} 35. b7 {[%clk 0:00:08.7]} 35... Kd8 {[%clk
0:00:06.3]} 36. Rxg7 {[%clk 0:00:09.2]} 36... Rf8 {[%clk 0:00:05.6]} 37. h4
{[%clk 0:00:06.4]} 37... gxh4 {[%clk 0:00:04.7]} 38. gxh4 {[%clk 0:00:07.3]}
38... Re8 {[%clk 0:00:03.8]} 39. h5 {[%clk 0:00:07.3]} 39... Re7 {[%clk
0:00:02.2]} 40. Rg8+ {[%clk 0:00:06.3]} 40... Re8 {[%clk 0:00:02.9]} 41. Rg7
{[%clk 0:00:06.6]} 41... Re7 {[%clk 0:00:03]} 42. Rd1+ {[%clk 0:00:06.8]} 42...
Ke8 {[%clk 0:00:02.2]} 43. Rg8+ {[%clk 0:00:07.4]} 43... Kf7 {[%clk 0:00:02.6]}
44. Rxb8 {[%clk 0:00:08.1]} 1-0

[Event "*** Titled Tuesday Blitz"]
[Site "Chess.com"]
[Date "2021.03.09"]
[Round "4"]
[White "Ladislav1969"]
[Black "MatyChess1"]
[Result "0-1"]
[WhiteElo "2333"]
[BlackElo "2586"]
[TimeControl "180+1"]
[EndTime "10:42:11 PST"]
[Termination "MatyChess1 won on time"]

1. e4 {[%clk 0:03:00.9]} 1... c5 {[%clk 0:03:00]} 2. d4 {[%clk 0:03:00.9]} 2...
cxd4 {[%clk 0:03:00]} 3. c3 {[%clk 0:03:01.8]} 3... Nf6 {[%clk 0:02:59.4]} 4. e5
{[%clk 0:03:01.4]} 4... Nd5 {[%clk 0:02:59.9]} 5. Nf3 {[%clk 0:03:00.4]} 5...
Nc6 {[%clk 0:03:00.1]} 6. Bc4 {[%clk 0:03:00.5]} 6... Nb6 {[%clk 0:02:58.7]} 7.
Bb3 {[%clk 0:03:01.1]} 7... g6 {[%clk 0:02:58.1]} 8. cxd4 {[%clk 0:02:58.3]}
8... Bg7 {[%clk 0:02:57.9]} 9. Bf4 {[%clk 0:02:51.6]} 9... d6 {[%clk 0:02:54.2]}
10. exd6 {[%clk 0:02:45.4]} 10... O-O {[%clk 0:02:51.2]} 11. O-O {[%clk
0:02:29.2]} 11... Bg4 {[%clk 0:02:50]} 12. h3 {[%clk 0:02:23.5]} 12... Bxf3
{[%clk 0:02:48.6]} 13. Qxf3 {[%clk 0:02:23.5]} 13... Nxd4 {[%clk 0:02:48.2]} 14.
Qxb7 {[%clk 0:02:08.3]} 14... exd6 {[%clk 0:02:43.9]} 15. Nc3 {[%clk 0:01:51.2]}
15... a5 {[%clk 0:02:13.7]} 16. Rfe1 {[%clk 0:01:35.7]} 16... a4 {[%clk
0:02:01.6]} 17. Bd1 {[%clk 0:01:29.1]} 17... Ne6 {[%clk 0:01:34.5]} 18. Be3
{[%clk 0:01:27.7]} 18... Nc4 {[%clk 0:01:32.1]} 19. Nxa4 {[%clk 0:01:24.2]}
19... Qh4 {[%clk 0:00:36.2]} 20. Nb6 {[%clk 0:01:02.9]} 20... Rab8 {[%clk
0:00:35.4]} 21. Qc6 {[%clk 0:00:59.9]} 21... Nxe3 {[%clk 0:00:32]} 22. Rxe3
{[%clk 0:00:57.8]} 22... Bd4 {[%clk 0:00:32]} 23. Nd5 {[%clk 0:00:43.1]} 23...
Rxb2 {[%clk 0:00:26.3]} 24. g3 {[%clk 0:00:30.3]} 24... Qxh3 {[%clk 0:00:18.7]}
25. Ne7+ {[%clk 0:00:19.6]} 25... Kh8 {[%clk 0:00:17.8]} 26. Qxd6 {[%clk
0:00:16.5]} 26... Bxe3 {[%clk 0:00:13.6]} 27. Qe5+ {[%clk 0:00:16.5]} 27... Ng7
{[%clk 0:00:07.1]} 28. Qxe3 {[%clk 0:00:15.1]} 28... Qe6 {[%clk 0:00:07.2]} 29.
Qc3 {[%clk 0:00:10.5]} 29... Qxe7 {[%clk 0:00:02.1]} 30. Qxb2 {[%clk 0:00:09.3]}
30... Qe1+ {[%clk 0:00:02.8]} 31. Kg2 {[%clk 0:00:09.4]} 31... Rd8 {[%clk
0:00:03.5]} 32. Bf3 {[%clk 0:00:09.1]} 32... Qe7 {[%clk 0:00:04.2]} 33. Rc1
{[%clk 0:00:08.5]} 33... Kg8 {[%clk 0:00:04.3]} 34. a4 {[%clk 0:00:08.7]} 34...
Ne6 {[%clk 0:00:04.9]} 35. a5 {[%clk 0:00:08.5]} 35... Nd4 {[%clk 0:00:05.5]}
36. Qb7 {[%clk 0:00:06.7]} 36... Qg5 {[%clk 0:00:04]} 37. Qc7 {[%clk 0:00:04.2]}
37... Ne6 {[%clk 0:00:03.1]} 38. Qc3 {[%clk 0:00:02.8]} 38... Nd4 {[%clk
0:00:01.5]} 39. a6 {[%clk 0:00:01.4]} 39... Nxf3 {[%clk 0:00:01.9]} 40. Kxf3
{[%clk 0:00:01.7]} 40... Qf5+ {[%clk 0:00:01.7]} 41. Kg2 {[%clk 0:00:01.5]}
41... Qe4+ {[%clk 0:00:02.2]} 0-1

[Event "*** Titled Tuesday Blitz"]
[Site "Chess.com"]
[Date "2021.03.09"]
[Round "4"]
[White "PavelChernomordik"]
[Black "Meri-Arabidze"]
[Result "0-1"]
[WhiteElo "2372"]
[BlackElo "2570"]
[TimeControl "180+1"]
[EndTime "10:42:11 PST"]
[Termination "Meri-Arabidze won by resignation"]

1. e4 {[%clk 0:03:00.9]} 1... c5 {[%clk 0:02:59.7]} 2. Nc3 {[%clk 0:02:59.9]}
2... e6 {[%clk 0:03:00.6]} 3. f4 {[%clk 0:02:59.4]} 3... Nc6 {[%clk 0:03:01.5]}
4. Nf3 {[%clk 0:02:59]} 4... a6 {[%clk 0:03:02.4]} 5. g3 {[%clk 0:02:58.4]} 5...
d5 {[%clk 0:03:02.5]} 6. d3 {[%clk 0:02:58]} 6... Nf6 {[%clk 0:03:02.9]} 7. e5
{[%clk 0:02:57.6]} 7... Nd7 {[%clk 0:03:01.3]} 8. Bg2 {[%clk 0:02:57.2]} 8...
Be7 {[%clk 0:03:00.4]} 9. Qe2 {[%clk 0:02:56.8]} 9... Qc7 {[%clk 0:02:58.1]} 10.
O-O {[%clk 0:02:56]} 10... O-O {[%clk 0:02:57]} 11. Bd2 {[%clk 0:02:46.9]} 11...
b5 {[%clk 0:02:55.9]} 12. Rae1 {[%clk 0:02:44.8]} 12... b4 {[%clk 0:02:53.6]}
13. Nd1 {[%clk 0:02:44.1]} 13... a5 {[%clk 0:02:53.8]} 14. g4 {[%clk 0:02:37.3]}
14... f6 {[%clk 0:02:30.6]} 15. exf6 {[%clk 0:02:31.3]} 15... Nxf6 {[%clk
0:02:31.5]} 16. Nf2 {[%clk 0:02:25.3]} 16... Nd4 {[%clk 0:02:23.9]} 17. Nxd4
{[%clk 0:02:23.3]} 17... cxd4 {[%clk 0:02:24.8]} 18. g5 {[%clk 0:02:16.1]} 18...
Ne8 {[%clk 0:02:23.8]} 19. Bh3 {[%clk 0:02:15.7]} 19... Ra6 {[%clk 0:02:21.8]}
20. Rc1 {[%clk 0:02:05.7]} 20... Kh8 {[%clk 0:02:09.9]} 21. Ng4 {[%clk
0:02:04.8]} 21... Nd6 {[%clk 0:02:06.6]} 22. Ne5 {[%clk 0:02:02.6]} 22... Nf5
{[%clk 0:02:06.6]} 23. Qh5 {[%clk 0:01:59.1]} 23... Kg8 {[%clk 0:02:00.6]} 24.
Rfe1 {[%clk 0:01:58.5]} 24... Bd6 {[%clk 0:01:53.5]} 25. Re2 {[%clk 0:01:41.8]}
25... Bxe5 {[%clk 0:01:35.9]} 26. Rxe5 {[%clk 0:01:39.1]} 26... g6 {[%clk
0:01:35.8]} 27. Qf3 {[%clk 0:01:37.7]} 27... Rc6 {[%clk 0:01:34.5]} 28. Qd1
{[%clk 0:01:29.4]} 28... Bd7 {[%clk 0:01:22.7]} 29. a3 {[%clk 0:00:56.4]} 29...
Ne3 {[%clk 0:01:19.4]} 30. Bxe3 {[%clk 0:00:52.4]} 30... dxe3 {[%clk 0:01:20.3]}
31. d4 {[%clk 0:00:40.3]} 31... Rxf4 {[%clk 0:01:16.7]} 32. Rxe3 {[%clk
0:00:39.8]} 32... Qd8 {[%clk 0:01:05.8]} 33. Re5 {[%clk 0:00:36.6]} 33... bxa3
{[%clk 0:01:03.2]} 34. bxa3 {[%clk 0:00:35.7]} 34... Qb6 {[%clk 0:01:01.8]} 35.
c3 {[%clk 0:00:31.8]} 35... Qb2 {[%clk 0:00:59.5]} 36. Rc2 {[%clk 0:00:24.2]}
36... Qxa3 {[%clk 0:00:59.3]} 37. Qc1 {[%clk 0:00:19.4]} 37... Qxc1+ {[%clk
0:00:56.4]} 38. Rxc1 {[%clk 0:00:19]} 38... Rf3 {[%clk 0:00:56.8]} 39. Bg2
{[%clk 0:00:16]} 39... Rfxc3 {[%clk 0:00:54.7]} 40. Ra1 {[%clk 0:00:15.5]} 40...
Rc1+ {[%clk 0:00:52.3]} 41. Re1 {[%clk 0:00:13.7]} 41... Rxe1+ {[%clk 0:00:52]}
42. Rxe1 {[%clk 0:00:13]} 42... a4 {[%clk 0:00:52.7]} 43. Ra1 {[%clk 0:00:12.1]}
43... Rc4 {[%clk 0:00:51]} 44. Kf2 {[%clk 0:00:11.8]} 44... Rxd4 {[%clk
0:00:49.9]} 45. Ke3 {[%clk 0:00:12]} 45... Rg4 {[%clk 0:00:45]} 46. Ra2 {[%clk
0:00:11.2]} 46... Kf7 {[%clk 0:00:41.3]} 47. h3 {[%clk 0:00:09.5]} 47... Rxg5
{[%clk 0:00:39.7]} 48. Kd4 {[%clk 0:00:09.3]} 48... Ke7 {[%clk 0:00:38.6]} 49.
Kc5 {[%clk 0:00:07.9]} 49... Rg3 {[%clk 0:00:36.7]} 0-1

[Event "*** Titled Tuesday Blitz"]
[Site "Chess.com"]
[Date "2021.03.09"]
[Round "4"]
[White "BJthechessgod"]
[Black "marianokar"]
[Result "0-1"]
[WhiteElo "2286"]
[BlackElo "2470"]
[TimeControl "180+1"]
[EndTime "10:42:14 PST"]
[Termination "marianokar won by resignation"]

1. e4 {[%clk 0:03:00.9]} 1... c5 {[%clk 0:02:59.3]} 2. Nf3 {[%clk 0:03:00.5]}
2... e6 {[%clk 0:02:59.9]} 3. d4 {[%clk 0:03:01]} 3... cxd4 {[%clk 0:03:00.6]}
4. Nxd4 {[%clk 0:03:01.9]} 4... Nc6 {[%clk 0:03:01]} 5. Nc3 {[%clk 0:03:02.6]}
5... a6 {[%clk 0:02:59]} 6. Be3 {[%clk 0:03:02]} 6... Nf6 {[%clk 0:02:53.6]} 7.
Be2 {[%clk 0:03:01.8]} 7... Bb4 {[%clk 0:02:49.2]} 8. Bf3 {[%clk 0:02:56.1]}
8... d5 {[%clk 0:02:44.8]} 9. exd5 {[%clk 0:02:55.2]} 9... Nxd5 {[%clk
0:02:44.2]} 10. Bxd5 {[%clk 0:02:55.3]} 10... Qxd5 {[%clk 0:02:37.3]} 11. Nxc6
{[%clk 0:02:54.7]} 11... Bxc3+ {[%clk 0:02:22.4]} 12. bxc3 {[%clk 0:02:54]}
12... Qxc6 {[%clk 0:02:23]} 13. Qd4 {[%clk 0:02:50.4]} 13... O-O {[%clk
0:02:04.6]} 14. O-O {[%clk 0:02:34.8]} 14... b5 {[%clk 0:02:04.4]} 15. Qc5
{[%clk 0:02:07.5]} 15... Bb7 {[%clk 0:01:44.3]} 16. Qxc6 {[%clk 0:02:06.4]}
16... Bxc6 {[%clk 0:01:45.2]} 17. Bc5 {[%clk 0:02:04.4]} 17... Rfc8 {[%clk
0:01:44.5]} 18. Rfd1 {[%clk 0:02:02.3]} 18... Bd5 {[%clk 0:01:44.7]} 19. Bd4
{[%clk 0:02:01]} 19... Rc4 {[%clk 0:01:43.1]} 20. a3 {[%clk 0:01:48.5]} 20... f6
{[%clk 0:01:33.9]} 21. f4 {[%clk 0:01:43.9]} 21... Kf7 {[%clk 0:01:32]} 22. Rdb1
{[%clk 0:01:35.7]} 22... Be4 {[%clk 0:01:00.7]} 23. Ra2 {[%clk 0:01:28.6]} 23...
h6 {[%clk 0:00:52.3]} 24. Rb4 {[%clk 0:01:27.1]} 24... Rac8 {[%clk 0:00:51.7]}
25. Kf2 {[%clk 0:01:19.6]} 25... g5 {[%clk 0:00:51.2]} 26. fxg5 {[%clk
0:01:14.8]} 26... hxg5 {[%clk 0:00:51]} 27. g4 {[%clk 0:01:05.6]} 27... e5
{[%clk 0:00:42.7]} 28. Be3 {[%clk 0:01:03.1]} 28... Bd5 {[%clk 0:00:40.1]} 29.
Rab2 {[%clk 0:00:32.7]} 29... Rxc3 {[%clk 0:00:39.6]} 30. a4 {[%clk 0:00:28.6]}
30... Rxc2+ {[%clk 0:00:39.6]} 31. Rxc2 {[%clk 0:00:27.4]} 31... Rxc2+ {[%clk
0:00:40.5]} 32. Kg3 {[%clk 0:00:26.7]} 32... Bc6 {[%clk 0:00:35.5]} 33. a5
{[%clk 0:00:21.9]} 33... Rg2+ {[%clk 0:00:30.5]} 34. Kh3 {[%clk 0:00:21.8]}
34... Ra2 {[%clk 0:00:30.7]} 35. Bb6 {[%clk 0:00:21.5]} 35... Ke6 {[%clk
0:00:28.6]} 36. Kg3 {[%clk 0:00:18.9]} 36... Bd5 {[%clk 0:00:27.4]} 37. h4
{[%clk 0:00:15.9]} 37... Ra3+ {[%clk 0:00:26]} 38. Kh2 {[%clk 0:00:16.1]} 38...
gxh4 {[%clk 0:00:26.6]} 39. Rb1 {[%clk 0:00:13.6]} 39... Bc4 {[%clk 0:00:23.7]}
40. Rd1 {[%clk 0:00:13]} 40... Ra2+ {[%clk 0:00:23.3]} 41. Kh3 {[%clk 0:00:13]}
41... b4 {[%clk 0:00:21.6]} 42. Bc5 {[%clk 0:00:11.7]} 42... b3 {[%clk
0:00:20.9]} 43. Rd6+ {[%clk 0:00:12.1]} 43... Kf7 {[%clk 0:00:21.1]} 44. Rb6
{[%clk 0:00:11.4]} 44... b2 {[%clk 0:00:20.5]} 45. Rb7+ {[%clk 0:00:07.7]} 45...
Ke6 {[%clk 0:00:20.5]} 46. Rb6+ {[%clk 0:00:05.2]} 46... Kd5 {[%clk 0:00:20.8]}
47. Be3 {[%clk 0:00:05.1]} 47... Bd3 {[%clk 0:00:20.6]} 48. Rxf6 {[%clk
0:00:02.2]} 48... b1=Q {[%clk 0:00:20.3]} 49. Kxh4 {[%clk 0:00:02.5]} 49... Qh1+
{[%clk 0:00:19.7]} 50. Kg5 {[%clk 0:00:03.1]} 50... Qe4 {[%clk 0:00:20.2]} 51.
Bc1 {[%clk 0:00:02.3]} 51... Rg2 {[%clk 0:00:20.3]} 52. Rg6 {[%clk 0:00:02.1]}
52... Qxg4+ {[%clk 0:00:20.3]} 0-1

[Event "*** Titled Tuesday Blitz"]
[Site "Chess.com"]
[Date "2021.03.09"]
[Round "4"]
[White "ljuks68"]
[Black "Steegersee"]
[Result "1-0"]
[WhiteElo "2441"]
[BlackElo "2230"]
[TimeControl "180+1"]
[EndTime "10:42:14 PST"]
[Termination "ljuks68 won by checkmate"]

1. e4 {[%clk 0:02:38.8]} 1... e5 {[%clk 0:02:58.9]} 2. Nf3 {[%clk 0:02:35]} 2...
Nc6 {[%clk 0:02:58.3]} 3. Bb5 {[%clk 0:02:31.2]} 3... a6 {[%clk 0:02:58.3]} 4.
Ba4 {[%clk 0:02:30.4]} 4... Nf6 {[%clk 0:02:57.3]} 5. Qe2 {[%clk 0:02:28.8]}
5... b5 {[%clk 0:02:52.8]} 6. Bb3 {[%clk 0:02:28.7]} 6... Be7 {[%clk 0:02:53.2]}
7. c3 {[%clk 0:02:29.1]} 7... O-O {[%clk 0:02:51.4]} 8. O-O {[%clk 0:02:28.5]}
8... d5 {[%clk 0:02:42.3]} 9. d3 {[%clk 0:02:28.1]} 9... Bb7 {[%clk 0:02:41.2]}
10. Bg5 {[%clk 0:02:22.5]} 10... Re8 {[%clk 0:02:37.8]} 11. Bxf6 {[%clk
0:02:19.2]} 11... dxe4 {[%clk 0:02:14.1]} 12. Bxe7 {[%clk 0:01:45.3]} 12... exf3
{[%clk 0:02:12.7]} 13. Qxf3 {[%clk 0:01:41.9]} 13... Rxe7 {[%clk 0:02:00.3]} 14.
Qe2 {[%clk 0:01:33.1]} 14... Na5 {[%clk 0:01:38.3]} 15. Bc2 {[%clk 0:01:30.7]}
15... Qd5 {[%clk 0:01:35.9]} 16. f3 {[%clk 0:01:28.2]} 16... c5 {[%clk
0:01:34.2]} 17. Nd2 {[%clk 0:01:26]} 17... Rd8 {[%clk 0:01:32.8]} 18. Ne4 {[%clk
0:01:24.8]} 18... f5 {[%clk 0:01:25.7]} 19. Ng3 {[%clk 0:01:23.5]} 19... Qd7
{[%clk 0:01:19.4]} 20. Rfe1 {[%clk 0:01:20.6]} 20... g6 {[%clk 0:01:15.9]} 21.
Rad1 {[%clk 0:01:18.3]} 21... Nc6 {[%clk 0:01:09.7]} 22. Nf1 {[%clk 0:01:11]}
22... Rde8 {[%clk 0:01:04.6]} 23. Ne3 {[%clk 0:01:09.2]} 23... Nd4 {[%clk
0:01:00.5]} 24. Qf2 {[%clk 0:00:54.8]} 24... Nxc2 {[%clk 0:00:47.2]} 25. Qxc2
{[%clk 0:00:54.1]} 25... Qc6 {[%clk 0:00:37.2]} 26. Nf1 {[%clk 0:00:45.8]} 26...
Qb6 {[%clk 0:00:30.3]} 27. Kh1 {[%clk 0:00:44.3]} 27... Kg7 {[%clk 0:00:29.6]}
28. Ne3 {[%clk 0:00:41.9]} 28... Qc6 {[%clk 0:00:27.2]} 29. Qb3 {[%clk
0:00:37.9]} 29... h5 {[%clk 0:00:24.3]} 30. Ra1 {[%clk 0:00:34]} 30... Rd8
{[%clk 0:00:18]} 31. Red1 {[%clk 0:00:32.3]} 31... f4 {[%clk 0:00:15.2]} 32. Nc2
{[%clk 0:00:28]} 32... g5 {[%clk 0:00:15.7]} 33. a4 {[%clk 0:00:26.4]} 33... g4
{[%clk 0:00:13.2]} 34. axb5 {[%clk 0:00:24.5]} 34... axb5 {[%clk 0:00:14.1]} 35.
Ne1 {[%clk 0:00:24.7]} 35... c4 {[%clk 0:00:10.6]} 36. dxc4 {[%clk 0:00:23.6]}
36... bxc4 {[%clk 0:00:11.5]} 37. Qb4 {[%clk 0:00:23.1]} 37... Red7 {[%clk
0:00:11.5]} 38. Rxd7+ {[%clk 0:00:22.5]} 38... Rxd7 {[%clk 0:00:11.1]} 39. Qa5
{[%clk 0:00:21.1]} 39... Rd2 {[%clk 0:00:07.9]} 40. Qxe5+ {[%clk 0:00:20]} 40...
Kg6 {[%clk 0:00:06.3]} 41. Qxf4 {[%clk 0:00:16.9]} 41... gxf3 {[%clk 0:00:05.8]}
42. Qg3+ {[%clk 0:00:16.8]} 42... Kh7 {[%clk 0:00:04.9]} 43. Nxf3 {[%clk
0:00:16.9]} 43... Rxb2 {[%clk 0:00:04.3]} 44. Ng5+ {[%clk 0:00:16]} 44... Kh6
{[%clk 0:00:03.8]} 45. Nf3 {[%clk 0:00:16.2]} 45... Kh7 {[%clk 0:00:04.4]} 46.
Re1 {[%clk 0:00:15]} 46... Kh6 {[%clk 0:00:03.6]} 47. Qg5+ {[%clk 0:00:13.8]}
47... Kh7 {[%clk 0:00:03.8]} 48. Re7+ {[%clk 0:00:13.8]} 48... Kh8 {[%clk
0:00:03.8]} 49. Qg7# {[%clk 0:00:13.8]} 1-0